[Event "*** Titled Tuesday 3|2 Blitz"]
[Site "Chess.com"]
[Date "2015.06.02"]
[Round "6"]
[White "stepanosinovsky"]
[Black "Aygehovit1992"]
[Result "0-1"]
[WhiteElo "2298"]
[BlackElo "2435"]
[TimeControl "180+2"]
[EndTime "12:10:29 PDT"]
[Termination "Aygehovit1992 won by resignation"]

1. Nf3 {[%clk 0:03:01.9]} 1... g6 {[%clk 0:02:59.5]} 2. g3 {[%clk 0:03:00.6]}
2... Bg7 {[%clk 0:03:00.7]} 3. Bg2 {[%clk 0:03:02.5]} 3... e5 {[%clk 0:02:54.8]}
4. O-O {[%clk 0:03:04.4]} 4... d5 {[%clk 0:02:55.7]} 5. d3 {[%clk 0:03:03.9]}
5... Ne7 {[%clk 0:02:56.2]} 6. c4 {[%clk 0:03:02.3]} 6... d4 {[%clk 0:02:57.3]}
7. b4 {[%clk 0:03:01.9]} 7... O-O {[%clk 0:02:58.4]} 8. a4 {[%clk 0:02:49.7]}
8... f5 {[%clk 0:02:59.5]} 9. a5 {[%clk 0:02:44]} 9... h6 {[%clk 0:02:55]} 10.
Nbd2 {[%clk 0:02:39.3]} 10... g5 {[%clk 0:02:50.7]} 11. b5 {[%clk 0:02:21.3]}
11... Ng6 {[%clk 0:02:51.2]} 12. Ba3 {[%clk 0:02:20.1]} 12... Rf7 {[%clk
0:02:52.4]} 13. c5 {[%clk 0:02:19.6]} 13... Nd7 {[%clk 0:02:51.8]} 14. Nc4
{[%clk 0:01:54.7]} 14... Rb8 {[%clk 0:02:48.3]} 15. Qb3 {[%clk 0:01:52.5]} 15...
g4 {[%clk 0:02:48.5]} 16. Nfd2 {[%clk 0:01:52.6]} 16... Nf6 {[%clk 0:02:48.1]}
17. e3 {[%clk 0:01:33.8]} 17... dxe3 {[%clk 0:02:44.3]} 18. fxe3 {[%clk
0:01:34.8]} 18... h5 {[%clk 0:02:45.3]} 19. Bb2 {[%clk 0:01:25.2]} 19... Be6
{[%clk 0:02:44]} 20. Qc2 {[%clk 0:01:23.5]} 20... Nh7 {[%clk 0:02:40.8]} 21. b6
{[%clk 0:01:19]} 21... axb6 {[%clk 0:02:41.2]} 22. axb6 {[%clk 0:01:19]} 22...
cxb6 {[%clk 0:02:42.4]} 23. Nxb6 {[%clk 0:01:13.8]} 23... Ng5 {[%clk 0:02:41.4]}
24. Ndc4 {[%clk 0:00:56.2]} 24... h4 {[%clk 0:02:28.4]} 25. Nd6 {[%clk
0:00:55.7]} 25... Rf6 {[%clk 0:02:14.6]} 26. gxh4 {[%clk 0:00:49.6]} 26... Nxh4
{[%clk 0:02:14.7]} 27. Bxe5 {[%clk 0:00:49.9]} 27... Rh6 {[%clk 0:02:04.9]} 28.
Bxg7 {[%clk 0:00:48.7]} 28... Kxg7 {[%clk 0:02:06.2]} 29. Qc3+ {[%clk
0:00:47.9]} 29... Kh7 {[%clk 0:02:07.1]} 30. Qe5 {[%clk 0:00:47.8]} 30... Nhf3+
{[%clk 0:02:03.7]} 31. Bxf3 {[%clk 0:00:45.5]} 31... Nxf3+ {[%clk 0:02:04.9]}
32. Kg2 {[%clk 0:00:11.8]} 32... Nxe5 {[%clk 0:02:05]} 0-1

[Event "*** Titled Tuesday 3|2 Blitz"]
[Site "Chess.com"]
[Date "2015.06.02"]
[Round "6"]
[White "MinhGTrAn"]
[Black "wonderfultime"]
[Result "1-0"]
[WhiteElo "2577"]
[BlackElo "2513"]
[TimeControl "180+2"]
[EndTime "12:10:41 PDT"]
[Termination "MinhGTrAn won by resignation"]

1. d4 {[%clk 0:03:01.9]} 1... d5 {[%clk 0:02:57.1]} 2. c4 {[%clk 0:03:00.7]}
2... c6 {[%clk 0:02:57.5]} 3. Nc3 {[%clk 0:03:01.7]} 3... Nf6 {[%clk 0:02:50.4]}
4. cxd5 {[%clk 0:03:02.6]} 4... cxd5 {[%clk 0:02:52.3]} 5. Bf4 {[%clk
0:03:04.2]} 5... e6 {[%clk 0:02:53.2]} 6. e3 {[%clk 0:03:05.6]} 6... a6 {[%clk
0:02:53.8]} 7. Rc1 {[%clk 0:03:06.6]} 7... Nc6 {[%clk 0:02:52.3]} 8. Bd3 {[%clk
0:03:08]} 8... Bd6 {[%clk 0:02:53.1]} 9. Bxd6 {[%clk 0:03:08.7]} 9... Qxd6
{[%clk 0:02:55]} 10. f4 {[%clk 0:03:10.6]} 10... O-O {[%clk 0:02:53.7]} 11. Nf3
{[%clk 0:03:12.1]} 11... b5 {[%clk 0:02:54.9]} 12. O-O {[%clk 0:03:13.3]} 12...
Bb7 {[%clk 0:02:56.4]} 13. Ne5 {[%clk 0:03:14.5]} 13... Rac8 {[%clk 0:02:56.7]}
14. Rf3 {[%clk 0:03:13]} 14... Ne7 {[%clk 0:02:51.2]} 15. Rh3 {[%clk 0:03:12.1]}
15... g6 {[%clk 0:02:50]} 16. Qe1 {[%clk 0:03:12.3]} 16... b4 {[%clk 0:02:34.2]}
17. Na4 {[%clk 0:03:07.6]} 17... Rxc1 {[%clk 0:02:34.5]} 18. Qxc1 {[%clk
0:03:09.5]} 18... Ne4 {[%clk 0:01:29.6]} 19. Qe1 {[%clk 0:03:00.9]} 19... Qc7
{[%clk 0:01:14.5]} 20. Bxe4 {[%clk 0:02:58]} 20... dxe4 {[%clk 0:01:16.4]} 21.
Nc5 {[%clk 0:02:59.6]} 21... Nd5 {[%clk 0:00:32.2]} 22. Qh4 {[%clk 0:02:44.4]}
22... h5 {[%clk 0:00:16.9]} 23. g4 {[%clk 0:02:33.4]} 23... b3 {[%clk
0:00:18.1]} 24. a3 {[%clk 0:02:26.5]} 24... Qa5 {[%clk 0:00:14.2]} 25. Qf2
{[%clk 0:01:29.4]} 25... Bc8 {[%clk 0:00:08.9]} 26. gxh5 {[%clk 0:01:28.5]} 1-0

[Event "*** Titled Tuesday 3|2 Blitz"]
[Site "Chess.com"]
[Date "2015.06.02"]
[Round "6"]
[White "MITerryble"]
[Black "TomsKantans"]
[Result "1-0"]
[WhiteElo "2532"]
[BlackElo "2282"]
[TimeControl "180+2"]
[EndTime "12:10:43 PDT"]
[Termination "MITerryble won by resignation"]

1. d4 {[%clk 0:02:57.8]} 1... Nf6 {[%clk 0:03:00]} 2. Nf3 {[%clk 0:02:57.8]}
2... c5 {[%clk 0:02:58.4]} 3. d5 {[%clk 0:02:57.8]} 3... e6 {[%clk 0:02:59]} 4.
Nc3 {[%clk 0:02:58.8]} 4... exd5 {[%clk 0:02:57.2]} 5. Nxd5 {[%clk 0:02:59.6]}
5... Nxd5 {[%clk 0:02:57.3]} 6. Qxd5 {[%clk 0:03:01.5]} 6... Nc6 {[%clk
0:02:54.9]} 7. e4 {[%clk 0:02:59.7]} 7... d6 {[%clk 0:02:55.8]} 8. Bc4 {[%clk
0:02:44.5]} 8... Be6 {[%clk 0:02:53.1]} 9. Qd3 {[%clk 0:02:45]} 9... Be7 {[%clk
0:02:33.8]} 10. O-O {[%clk 0:02:41.4]} 10... O-O {[%clk 0:02:33.2]} 11. Bxe6
{[%clk 0:02:36.9]} 11... fxe6 {[%clk 0:02:33.9]} 12. Qb3 {[%clk 0:02:38.4]}
12... Qd7 {[%clk 0:02:22.2]} 13. Rd1 {[%clk 0:02:38.5]} 13... Rxf3 {[%clk
0:02:09]} 14. Qxf3 {[%clk 0:02:35.7]} 14... Rf8 {[%clk 0:02:03.9]} 15. Qh3
{[%clk 0:02:32]} 15... Bf6 {[%clk 0:01:36.9]} 16. c3 {[%clk 0:02:30.5]} 16... b5
{[%clk 0:01:36]} 17. Be3 {[%clk 0:02:18.8]} 17... Qe7 {[%clk 0:01:34.2]} 18. f4
{[%clk 0:02:19.8]} 18... b4 {[%clk 0:01:33.3]} 19. Rac1 {[%clk 0:02:20.1]} 19...
bxc3 {[%clk 0:01:28.5]} 20. bxc3 {[%clk 0:02:22]} 20... Rb8 {[%clk 0:01:21.2]}
21. Qf3 {[%clk 0:02:01.9]} 21... Na5 {[%clk 0:01:16.9]} 22. Qe2 {[%clk
0:01:58.8]} 22... h6 {[%clk 0:01:03]} 23. Bf2 {[%clk 0:01:59.6]} 23... Qc7
{[%clk 0:00:41.4]} 24. Qd3 {[%clk 0:01:52.9]} 24... Rb6 {[%clk 0:00:38.6]} 25.
Rb1 {[%clk 0:01:52.1]} 25... Rxb1 {[%clk 0:00:21.4]} 26. Rxb1 {[%clk 0:01:50.3]}
26... c4 {[%clk 0:00:22.8]} 27. Qf3 {[%clk 0:01:44.1]} 27... Nc6 {[%clk
0:00:22.4]} 28. Rd1 {[%clk 0:01:34.6]} 28... Qb8 {[%clk 0:00:14.2]} 29. e5
{[%clk 0:01:35]} 1-0

[Event "*** Titled Tuesday 3|2 Blitz"]
[Site "Chess.com"]
[Date "2015.06.02"]
[Round "6"]
[White "DanielNaroditsky"]
[Black "lorcho"]
[Result "0-1"]
[WhiteElo "2558"]
[BlackElo "2476"]
[TimeControl "180+2"]
[EndTime "12:10:47 PDT"]
[Termination "lorcho won by resignation"]

1. e4 {[%clk 0:03:01.9]} 1... c6 {[%clk 0:03:01]} 2. d4 {[%clk 0:03:01.1]} 2...
d5 {[%clk 0:03:01.6]} 3. Nc3 {[%clk 0:03:01.8]} 3... dxe4 {[%clk 0:03:02.9]} 4.
Nxe4 {[%clk 0:03:03.3]} 4... Nf6 {[%clk 0:03:04.5]} 5. Nxf6+ {[%clk 0:03:03.9]}
5... exf6 {[%clk 0:03:06.4]} 6. Bc4 {[%clk 0:03:02.7]} 6... Bd6 {[%clk
0:03:07.2]} 7. Ne2 {[%clk 0:03:03.8]} 7... O-O {[%clk 0:03:05.5]} 8. Ng3 {[%clk
0:03:01.1]} 8... Re8+ {[%clk 0:03:03.9]} 9. Be3 {[%clk 0:03:02.2]} 9... f5
{[%clk 0:03:03.4]} 10. Ne2 {[%clk 0:02:51.2]} 10... f4 {[%clk 0:03:01.8]} 11.
Bd2 {[%clk 0:02:52.4]} 11... Bg4 {[%clk 0:02:55.1]} 12. f3 {[%clk 0:02:46.9]}
12... Qh4+ {[%clk 0:02:50.8]} 13. Kf1 {[%clk 0:02:47.2]} 13... Bf5 {[%clk
0:02:43.1]} 14. Qc1 {[%clk 0:02:19.5]} 14... Nd7 {[%clk 0:02:39]} 15. Nxf4
{[%clk 0:02:08.8]} 15... Nb6 {[%clk 0:02:32.7]} 16. Bb3 {[%clk 0:02:06.5]} 16...
a5 {[%clk 0:02:26.6]} 17. a4 {[%clk 0:02:06.9]} 17... Qf6 {[%clk 0:02:22.8]} 18.
c3 {[%clk 0:01:49.4]} 18... c5 {[%clk 0:02:20.7]} 19. dxc5 {[%clk 0:01:15.5]}
19... Bxc5 {[%clk 0:02:20.5]} 20. g4 {[%clk 0:01:17.2]} 20... Qc6 {[%clk
0:02:04.9]} 21. Kg2 {[%clk 0:01:09]} 21... Bxg4 {[%clk 0:02:04.6]} 22. Rf1
{[%clk 0:01:10.7]} 22... Rad8 {[%clk 0:01:52.6]} 23. Qc2 {[%clk 0:01:05]} 23...
Rxd2+ {[%clk 0:01:50.5]} 24. Qxd2 {[%clk 0:01:06.2]} 24... Be3 {[%clk
0:01:49.8]} 25. Bd5 {[%clk 0:00:57.9]} 25... Qd7 {[%clk 0:01:39.3]} 26. Qd3
{[%clk 0:00:42.9]} 26... Bxf4 {[%clk 0:01:38.1]} 27. Bxf7+ {[%clk 0:00:44.5]}
27... Kxf7 {[%clk 0:01:34.3]} 28. Qxh7 {[%clk 0:00:40.3]} 28... Re2+ {[%clk
0:01:30.8]} 29. Kh1 {[%clk 0:00:41]} 29... Qc6 {[%clk 0:01:22.5]} 30. Qd3 {[%clk
0:00:39.5]} 30... Rxh2+ {[%clk 0:01:22.2]} 31. Kg1 {[%clk 0:00:41]} 31... Qc5+
{[%clk 0:01:17.2]} 32. Qd4 {[%clk 0:00:41]} 32... Be3+ {[%clk 0:01:16.4]} 33.
Kxh2 {[%clk 0:00:42.4]} 33... Bxd4 {[%clk 0:01:15.9]} 0-1

[Event "*** Titled Tuesday 3|2 Blitz"]
[Site "Chess.com"]
[Date "2015.06.02"]
[Round "6"]
[White "amandarm"]
[Black "lexiel"]
[Result "0-1"]
[WhiteElo "2044"]
[BlackElo "1955"]
[TimeControl "180+2"]
[EndTime "12:11:39 PDT"]
[Termination "lexiel won by resignation"]

1. d4 {[%clk 0:03:01.9]} 1... d6 {[%clk 0:03:00.2]} 2. c4 {[%clk 0:03:01]} 2...
Nf6 {[%clk 0:02:59.2]} 3. Nc3 {[%clk 0:03:01.4]} 3... Bf5 {[%clk 0:02:59.4]} 4.
Nf3 {[%clk 0:03:01.2]} 4... h6 {[%clk 0:02:58]} 5. h3 {[%clk 0:02:58.4]} 5... c6
{[%clk 0:02:58.5]} 6. Bf4 {[%clk 0:02:54.6]} 6... Nbd7 {[%clk 0:02:57.1]} 7. e4
{[%clk 0:02:52.8]} 7... Nxe4 {[%clk 0:02:51.1]} 8. Qb3 {[%clk 0:02:24.5]} 8...
Nxc3 {[%clk 0:02:45]} 9. bxc3 {[%clk 0:02:23.9]} 9... Qc8 {[%clk 0:02:46]} 10.
Be2 {[%clk 0:02:23.5]} 10... e6 {[%clk 0:02:45.9]} 11. O-O {[%clk 0:02:24]}
11... Be7 {[%clk 0:02:47.2]} 12. Rfe1 {[%clk 0:02:24.7]} 12... O-O {[%clk
0:02:48]} 13. Bf1 {[%clk 0:02:23.4]} 13... Re8 {[%clk 0:02:47.1]} 14. Rac1
{[%clk 0:02:15.7]} 14... c5 {[%clk 0:02:45.6]} 15. d5 {[%clk 0:02:12.8]} 15...
e5 {[%clk 0:02:46.6]} 16. Bg3 {[%clk 0:02:09.6]} 16... Bf8 {[%clk 0:02:45.8]}
17. Nh4 {[%clk 0:02:08.9]} 17... Bh7 {[%clk 0:02:46.4]} 18. Be2 {[%clk
0:02:05.3]} 18... Nf6 {[%clk 0:02:43.9]} 19. Bd1 {[%clk 0:01:47.8]} 19... b6
{[%clk 0:02:41.7]} 20. a4 {[%clk 0:01:40.6]} 20... Qd7 {[%clk 0:02:40.7]} 21.
Qa3 {[%clk 0:01:35.4]} 21... e4 {[%clk 0:02:39.2]} 22. f4 {[%clk 0:01:04.4]}
22... g5 {[%clk 0:02:29.5]} 23. fxg5 {[%clk 0:00:55.7]} 23... hxg5 {[%clk
0:02:29.7]} 24. Qb2 {[%clk 0:00:40.8]} 24... gxh4 {[%clk 0:02:25.2]} 25. Bxh4
{[%clk 0:00:42.7]} 25... Bg7 {[%clk 0:02:26.3]} 26. Qf2 {[%clk 0:00:41]} 26...
Qf5 {[%clk 0:02:21.5]} 27. Qg3 {[%clk 0:00:38.4]} 27... Qe5 {[%clk 0:02:17]} 28.
Qe3 {[%clk 0:00:25.9]} 28... Kh8 {[%clk 0:02:11.4]} 29. Rf1 {[%clk 0:00:26]}
29... Rg8 {[%clk 0:02:10.4]} 30. Bc2 {[%clk 0:00:24.5]} 30... Rae8 {[%clk
0:02:06.9]} 31. Rf2 {[%clk 0:00:23.5]} 31... Bg6 {[%clk 0:01:42.2]} 32. Rcf1
{[%clk 0:00:24.2]} 32... Nh7 {[%clk 0:01:41.4]} 33. Bg3 {[%clk 0:00:22.9]} 33...
Qxc3 {[%clk 0:01:41]} 34. Qf4 {[%clk 0:00:13.4]} 34... Be5 {[%clk 0:01:37.1]}
35. Qh6 {[%clk 0:00:07.8]} 35... Bxg3 {[%clk 0:01:32.4]} 36. Rxf7 {[%clk
0:00:08.5]} 36... Bxf7 {[%clk 0:01:32]} 37. Rxf7 {[%clk 0:00:09.7]} 37... Qe1+
{[%clk 0:01:30.8]} 38. Rf1 {[%clk 0:00:08.4]} 38... Bf2+ {[%clk 0:01:31.1]} 39.
Kh2 {[%clk 0:00:09.6]} 39... Qxf1 {[%clk 0:01:32]} 0-1

[Event "*** Titled Tuesday 3|2 Blitz"]
[Site "Chess.com"]
[Date "2015.06.02"]
[Round "6"]
[White "GeorgMeier"]
[Black "oggy1984"]
[Result "1-0"]
[WhiteElo "2715"]
[BlackElo "2328"]
[TimeControl "180+2"]
[EndTime "12:12:08 PDT"]
[Termination "GeorgMeier won by resignation"]

1. Nf3 {[%clk 0:03:01.9]} 1... Nf6 {[%clk 0:02:56.6]} 2. g3 {[%clk 0:03:02.8]}
2... b6 {[%clk 0:02:53.3]} 3. Bg2 {[%clk 0:03:02.5]} 3... Bb7 {[%clk 0:02:52.1]}
4. O-O {[%clk 0:03:03.3]} 4... e6 {[%clk 0:02:50.3]} 5. c4 {[%clk 0:03:04.1]}
5... c5 {[%clk 0:02:47.7]} 6. Nc3 {[%clk 0:03:05.5]} 6... Be7 {[%clk 0:02:42.8]}
7. d4 {[%clk 0:03:06.3]} 7... cxd4 {[%clk 0:02:40.8]} 8. Qxd4 {[%clk 0:03:08.2]}
8... d6 {[%clk 0:02:38.5]} 9. Bg5 {[%clk 0:03:08.8]} 9... a6 {[%clk 0:02:35.1]}
10. Bxf6 {[%clk 0:03:09.6]} 10... Bxf6 {[%clk 0:02:32.4]} 11. Qf4 {[%clk
0:03:11.5]} 11... Bxf3 {[%clk 0:02:29.5]} 12. exf3 {[%clk 0:03:11.7]} 12... Ra7
{[%clk 0:02:27.2]} 13. Rfd1 {[%clk 0:03:12.4]} 13... Rd7 {[%clk 0:02:19.5]} 14.
Qe3 {[%clk 0:03:13.2]} 14... O-O {[%clk 0:02:16.4]} 15. f4 {[%clk 0:03:14.3]}
15... b5 {[%clk 0:02:13.9]} 16. cxb5 {[%clk 0:02:52.1]} 16... axb5 {[%clk
0:02:15.8]} 17. Nxb5 {[%clk 0:02:45.1]} 17... Bxb2 {[%clk 0:02:10.6]} 18. Rab1
{[%clk 0:02:45.5]} 18... Bf6 {[%clk 0:02:08.1]} 19. Rd2 {[%clk 0:02:12]} 19...
d5 {[%clk 0:02:03]} 20. f5 {[%clk 0:02:09.2]} 20... e5 {[%clk 0:01:55.8]} 21.
Qb3 {[%clk 0:01:57.7]} 21... d4 {[%clk 0:01:53]} 22. h4 {[%clk 0:01:58.3]} 22...
Qa5 {[%clk 0:01:49.4]} 23. Rdd1 {[%clk 0:01:05.1]} 23... h6 {[%clk 0:01:45]} 24.
Rbc1 {[%clk 0:01:03.2]} 24... d3 {[%clk 0:01:32.4]} 25. a4 {[%clk 0:00:55.9]}
25... Kh7 {[%clk 0:01:26.4]} 26. Rc4 {[%clk 0:00:56.3]} 26... Rfd8 {[%clk
0:01:11.5]} 27. Be4 {[%clk 0:00:57]} 27... d2 {[%clk 0:01:07]} 28. Kg2 {[%clk
0:00:58.4]} 28... Na6 {[%clk 0:01:03]} 29. Qc2 {[%clk 0:00:45.8]} 29... Nb4
{[%clk 0:00:56.5]} 30. Qc3 {[%clk 0:00:45.5]} 30... Nc6 {[%clk 0:00:33.7]} 31.
Bxc6 {[%clk 0:00:37.4]} 31... Qxc3 {[%clk 0:00:34.2]} 32. Rxc3 {[%clk
0:00:36.4]} 32... Re7 {[%clk 0:00:31.8]} 33. Be4 {[%clk 0:00:36.4]} 33... h5
{[%clk 0:00:32.1]} 34. Rc2 {[%clk 0:00:37.3]} 34... Red7 {[%clk 0:00:22.2]} 35.
Kf3 {[%clk 0:00:37.9]} 35... Kh6 {[%clk 0:00:23]} 36. Ke2 {[%clk 0:00:38.9]} 1-0

[Event "*** Titled Tuesday 3|2 Blitz"]
[Site "Chess.com"]
[Date "2015.06.02"]
[Round "6"]
[White "Keaton87"]
[Black "kleinebeer98"]
[Result "1-0"]
[WhiteElo "2402"]
[BlackElo "2273"]
[TimeControl "180+2"]
[EndTime "12:12:08 PDT"]
[Termination "Keaton87 won by resignation"]

1. e4 {[%clk 0:03:01.9]} 1... c5 {[%clk 0:03:00.8]} 2. Nf3 {[%clk 0:03:01.7]}
2... d6 {[%clk 0:02:59]} 3. d4 {[%clk 0:03:02.2]} 3... cxd4 {[%clk 0:03:00.6]}
4. Nxd4 {[%clk 0:03:04.1]} 4... Nf6 {[%clk 0:03:02]} 5. Nc3 {[%clk 0:03:05.8]}
5... a6 {[%clk 0:03:03.3]} 6. Bg5 {[%clk 0:03:06.2]} 6... Nbd7 {[%clk
0:03:03.1]} 7. f4 {[%clk 0:03:07]} 7... b5 {[%clk 0:03:03.3]} 8. Qe2 {[%clk
0:02:57.2]} 8... Qc7 {[%clk 0:02:50.7]} 9. Bxf6 {[%clk 0:02:52.7]} 9... Nxf6
{[%clk 0:02:35.4]} 10. e5 {[%clk 0:02:53.9]} 10... dxe5 {[%clk 0:02:35.9]} 11.
fxe5 {[%clk 0:02:55.8]} 11... Ng4 {[%clk 0:02:36.9]} 12. e6 {[%clk 0:02:56.9]}
12... Qe5 {[%clk 0:02:34.8]} 13. exf7+ {[%clk 0:02:50.9]} 13... Kxf7 {[%clk
0:02:34.1]} 14. Qxe5 {[%clk 0:02:50.3]} 14... Nxe5 {[%clk 0:02:34.4]} 15. Be2
{[%clk 0:02:51]} 15... Bb7 {[%clk 0:02:05.9]} 16. Nf3 {[%clk 0:02:51.9]} 16...
Nxf3+ {[%clk 0:02:04.7]} 17. Bxf3 {[%clk 0:02:52.4]} 17... Bxf3 {[%clk
0:02:05.2]} 18. Rf1 {[%clk 0:02:53.4]} 18... e5 {[%clk 0:01:58.4]} 19. Rxf3+
{[%clk 0:02:54.1]} 19... Ke6 {[%clk 0:01:59.3]} 20. Ne4 {[%clk 0:02:51.2]} 20...
Be7 {[%clk 0:01:58.9]} 21. Ke2 {[%clk 0:02:50.8]} 21... Rhf8 {[%clk 0:01:59.3]}
22. Raf1 {[%clk 0:02:50.7]} 22... Rxf3 {[%clk 0:01:59.3]} 23. Rxf3 {[%clk
0:02:52.6]} 23... Rc8 {[%clk 0:01:54.4]} 24. c3 {[%clk 0:02:48.4]} 24... b4
{[%clk 0:01:54]} 25. Rh3 {[%clk 0:02:43]} 25... h6 {[%clk 0:01:52.6]} 26. Rg3
{[%clk 0:02:42.7]} 26... g5 {[%clk 0:01:49.8]} 27. Rd3 {[%clk 0:02:43.7]} 27...
bxc3 {[%clk 0:01:46.3]} 28. Nxc3 {[%clk 0:02:44.1]} 28... Bc5 {[%clk 0:01:41.4]}
29. Rh3 {[%clk 0:02:42.9]} 29... Rh8 {[%clk 0:01:33.5]} 30. Ne4 {[%clk
0:02:43.2]} 30... Be7 {[%clk 0:01:34.2]} 31. g4 {[%clk 0:02:42.7]} 31... Kd5
{[%clk 0:01:30.2]} 32. Kd3 {[%clk 0:02:41.9]} 32... Rf8 {[%clk 0:01:25.7]} 33.
Nc3+ {[%clk 0:02:40.5]} 33... Kc5 {[%clk 0:01:21.7]} 34. Rxh6 {[%clk 0:02:41.4]}
34... Rf4 {[%clk 0:01:14.1]} 35. h3 {[%clk 0:02:36.9]} 35... a5 {[%clk
0:01:06.1]} 36. Re6 {[%clk 0:02:37.4]} 36... Bd8 {[%clk 0:00:47.8]} 37. Rxe5+
{[%clk 0:02:37.5]} 37... Kc6 {[%clk 0:00:48.2]} 38. Rf5 {[%clk 0:02:30.8]} 38...
Rb4 {[%clk 0:00:47]} 39. b3 {[%clk 0:02:30.6]} 39... Rb7 {[%clk 0:00:45.8]} 40.
Ne2 {[%clk 0:02:25.8]} 40... Rh7 {[%clk 0:00:45.1]} 41. Nd4+ {[%clk 0:02:24.1]}
41... Kd6 {[%clk 0:00:44.7]} 42. Rf3 {[%clk 0:02:23.1]} 42... Kd5 {[%clk
0:00:40.1]} 43. Nb5 {[%clk 0:02:19.8]} 43... Kc5 {[%clk 0:00:38.4]} 44. a4
{[%clk 0:02:09.7]} 44... Kb4 {[%clk 0:00:36.7]} 45. Ke4 {[%clk 0:02:09.7]} 45...
Re7+ {[%clk 0:00:35.8]} 46. Kd5 {[%clk 0:02:11.1]} 46... Rh7 {[%clk 0:00:34]}
47. Nd4 {[%clk 0:02:10.2]} 47... Bb6 {[%clk 0:00:32.6]} 48. Nc6+ {[%clk
0:02:09.3]} 48... Ka3 {[%clk 0:00:33.1]} 49. Ne5 {[%clk 0:01:39.3]} 49... Bc7
{[%clk 0:00:26.4]} 50. Ke6 {[%clk 0:01:32.9]} 50... Rh8 {[%clk 0:00:23.1]} 51.
Nf7 {[%clk 0:01:32.4]} 51... Re8+ {[%clk 0:00:23.3]} 52. Kd7 {[%clk 0:01:33.2]}
1-0

[Event "*** Titled Tuesday 3|2 Blitz"]
[Site "Chess.com"]
[Date "2015.06.02"]
[Round "6"]
[White "Vandros57"]
[Black "ilmago"]
[Result "0-1"]
[WhiteElo "1808"]
[BlackElo "1877"]
[TimeControl "180+2"]
[EndTime "12:12:38 PDT"]
[Termination "ilmago won on time"]

1. e4 {[%clk 0:03:01.9]} 1... c5 {[%clk 0:02:56]} 2. Nc3 {[%clk 0:02:59]} 2...
Nc6 {[%clk 0:02:54.4]} 3. g3 {[%clk 0:02:57.8]} 3... e6 {[%clk 0:02:54.8]} 4.
Bg2 {[%clk 0:02:55.7]} 4... Nf6 {[%clk 0:02:55.6]} 5. f4 {[%clk 0:02:53.1]} 5...
d5 {[%clk 0:02:53.9]} 6. d3 {[%clk 0:02:42.6]} 6... d4 {[%clk 0:02:52.8]} 7.
Nce2 {[%clk 0:02:41.8]} 7... Be7 {[%clk 0:02:53.9]} 8. Nf3 {[%clk 0:02:40.8]}
8... O-O {[%clk 0:02:54]} 9. O-O {[%clk 0:02:40.8]} 9... b5 {[%clk 0:02:51.9]}
10. h3 {[%clk 0:02:37.9]} 10... Bb7 {[%clk 0:02:52.4]} 11. g4 {[%clk 0:02:36.8]}
11... Rc8 {[%clk 0:02:52]} 12. Ng3 {[%clk 0:02:35.4]} 12... Nd7 {[%clk
0:02:52.2]} 13. f5 {[%clk 0:02:33.6]} 13... Nde5 {[%clk 0:02:47.1]} 14. Nxe5
{[%clk 0:02:29.7]} 14... Nxe5 {[%clk 0:02:47.2]} 15. Bf4 {[%clk 0:02:26]} 15...
Bd6 {[%clk 0:02:43.4]} 16. Qd2 {[%clk 0:02:16.4]} 16... c4 {[%clk 0:02:37.3]}
17. g5 {[%clk 0:02:05.9]} 17... c3 {[%clk 0:02:30.9]} 18. bxc3 {[%clk
0:02:01.8]} 18... Rxc3 {[%clk 0:02:31]} 19. Rf2 {[%clk 0:01:58.4]} 19... Qc7
{[%clk 0:02:27.4]} 20. Raf1 {[%clk 0:01:53]} 20... Rc8 {[%clk 0:02:26.3]} 21.
fxe6 {[%clk 0:01:48.6]} 21... fxe6 {[%clk 0:02:18.1]} 22. Qd1 {[%clk 0:01:37.8]}
22... Rxc2 {[%clk 0:02:15.7]} 23. Bxe5 {[%clk 0:01:21.3]} 23... Bxe5 {[%clk
0:01:59.8]} 24. Nh5 {[%clk 0:01:11.3]} 24... Rxf2 {[%clk 0:01:38.5]} 25. Rxf2
{[%clk 0:01:09.1]} 25... Qc1 {[%clk 0:01:33.8]} 26. Qxc1 {[%clk 0:01:03.7]}
26... Rxc1+ {[%clk 0:01:35.7]} 27. Bf1 {[%clk 0:01:03.8]} 27... b4 {[%clk
0:01:29.3]} 28. Nf4 {[%clk 0:00:58.6]} 28... Bxf4 {[%clk 0:01:20.5]} 29. Rxf4
{[%clk 0:00:58.4]} 29... Rc2 {[%clk 0:01:21.2]} 30. Rf2 {[%clk 0:00:56.1]} 30...
Rxf2 {[%clk 0:01:21.9]} 31. Kxf2 {[%clk 0:00:56.1]} 31... Kf7 {[%clk 0:01:23.4]}
32. Be2 {[%clk 0:00:48.8]} 32... Kg6 {[%clk 0:01:23]} 33. h4 {[%clk 0:00:48.5]}
33... a5 {[%clk 0:01:23.5]} 34. Bg4 {[%clk 0:00:47.4]} 34... Ba6 {[%clk
0:01:18.6]} 35. Bxe6 {[%clk 0:00:43.3]} 35... Bxd3 {[%clk 0:01:18.4]} 36. Bf5+
{[%clk 0:00:42.7]} 36... Kh5 {[%clk 0:01:19.2]} 37. Bxh7 {[%clk 0:00:36.9]}
37... Kxh4 {[%clk 0:01:19.5]} 38. Ke1 {[%clk 0:00:07.5]} 38... Kxg5 {[%clk
0:01:17.5]} 39. Kd2 {[%clk 0:00:07.8]} 39... Bc4 {[%clk 0:01:17.8]} 40. e5
{[%clk 0:00:07.3]} 40... Bxa2 {[%clk 0:01:09.2]} 41. Bd3 {[%clk 0:00:04.4]}
41... Kf4 {[%clk 0:01:05.6]} 42. e6 {[%clk 0:00:03.1]} 42... Bxe6 {[%clk
0:01:05.5]} 0-1